bitfinex/quotes_SOLUSD_20220105
["timestamp","ask_amount","ask_price","bid_price","bid_amount"]
[1641415005446,9.737,158.32,158.23,0.06]
[1641415006741,10.237,158.32,158.23,0.06]
[1641415006942,10.237,158.32,158.23,9.5368]
[1641415007342,10.237,158.32,158.23,10.0368]
[1641415008547,9.737,158.32,158.23,11.7595196]
[1641415008745,9.4757,158.34,158.23,11.7595196]
[1641415008944,7.51,158.36,158.23,11.7595196]
[1641415009145,39.0954,158.38,158.23,11.7595196]
[1641415009346,23.31333435,158.37,158.23,11.7595196]
[1641415009547,25.50113225,158.37,158.24,5.36834176]
[1641415009749,9.4752,158.35,158.26,9.475]
[1641415009951,25.50113225,158.37,158.24,6.83106136]
[1641415009952,39.0982,158.36,158.24,6.83106136]
[1641415010149,0.26,158.35,158.25,0.5]
[1641415010350,7.51,158.34,158.24,5.36834176]
[1641415010551,7.51,158.33,158.24,5.36834176]
[1641415010751,2.67441982,158.32,158.24,5.36834176]
[1641415010951,28.71655414,158.32,158.24,5.36834176]
[1641415011154,9.4788,158.28,158.21,5.36834176]
[1641415011353,2.98755014,158.27,158.21,5.36834176]
[1641415011550,3.24755014,158.27,158.21,5.36834176]
[1641415012152,26.56088449,158.27,158.21,5.36834176]
[1641415012552,26.56088449,158.27,158.18,5.36834176]
[1641415013657,26.56088449,158.27,158.24,1.78612551]
[1641415013856,9.4811,158.25,158.24,1.78612551]
[1641415014056,9.7411,158.25,158.24,1.78612551]
[1641415014667,9.4811,158.25,158.24,1.78612551]
[1641415015066,3.03219997,158.26,158.24,1.78612551]
[1641415015870,3.03219997,158.26,158.24,2.28612551]
[1641415016069,30.08436868,158.33,158.25,3.02780003]
[1641415016274,3.05083094,158.3,158.25,3.02780003]
[1641415016670,3.05083094,158.3,158.23,9.4769]
[1641415016871,3.05083094,158.3,158.23,10.2369]
[1641415017071,3.05083094,158.3,158.29,1.78555027]
[1641415017272,6.08303091,158.3,158.29,1.78555027]
[1641415017876,15.56063091,158.3,158.29,1.78555027]
[1641415018074,49.56063091,158.3,158.29,1.78555027]
[1641415018475,49.82063091,158.3,158.29,1.78555027]
[1641415018879,9.4803,158.26,158.21,5.36834176]
[1641415019073,9.4803,158.26,158.19,5.36834176]
[1641415019074,2.27221347,158.25,158.19,5.36834176]
[1641415019476,2.53221347,158.25,158.19,5.36834176]
[1641415019675,2.53221347,158.25,158.17,5.36834176]
[1641415020080,8.9823,158.23,158.17,5.36834176]
[1641415020276,26.11531929,158.24,158.17,5.36834176]
[1641415020475,0.26,158.23,158.17,5.36834176]
[1641415020674,7.77,158.23,158.17,5.36834176]
[1641415021075,9.4836,158.2,158.17,5.36834176]
[1641415021477,2.88780508,158.19,158.17,5.36834176]
[1641415021675,26.12795446,158.19,158.12,5.36834176]
[1641415021877,33.89795446,158.19,158.12,5.36834176]
[1641415022176,9.4857,158.17,158.12,5.36834176]
[1641415022579,9.7457,158.17,158.12,5.36834176]
[1641415022979,17.7557,158.17,158.12,5.36834176]
[1641415023379,23.52266367,158.16,158.12,5.36834176]
[1641415023579,87.0,158.14,158.08,7.14430137]
[1641415023780,9.4904,158.1,158.09,5.36089375]
[1641415023981,12.78259997,158.1,158.09,5.36089375]
[1641415024580,12.78259997,158.1,158.05,7.14430137]
[1641415024780,3.29219998,158.1,158.05,7.14430137]
[1641415025380,3.29219998,158.1,158.03,7.14430137]
[1641415025581,12.78259998,158.1,158.03,7.14430137]
[1641415026585,3.03219998,158.1,158.03,7.14430137]
[1641415026782,3.03219998,158.1,158.04,1.4627196]
[1641415026982,3.03219998,158.1,158.04,1.9627196]
[1641415027181,3.03219998,158.1,158.04,11.4506196]
[1641415027382,3.03219998,158.1,158.04,0.5]
[1641415027781,3.03219998,158.1,158.03,7.64430137]
[1641415027982,3.29219998,158.1,158.03,7.64430137]
[1641415028785,3.29219998,158.1,158.02,66.30338725]
[1641415028988,5.84470948,157.97,157.94,14.33580275]
[1641415029188,5.84470948,157.97,157.94,17.63475137]
[1641415029386,5.84470948,157.97,157.95,3.02780003]
[1641415029590,6.10470948,157.97,157.94,14.33580275]
[1641415030189,6.10470948,157.97,157.93,8.94010126]
[1641415030989,13.61470948,157.97,157.93,8.94010126]
[1641415031189,25.06147151,157.96,157.9,2.74601586]
[1641415031387,5.84470948,157.97,157.93,2.87850745]
[1641415032189,5.84470948,157.97,157.88,8.86623951]
[1641415032389,5.84470948,157.97,157.9,26.01612403]
[1641415032598,5.84470948,157.97,157.88,0.5]
[1641415032989,5.84470948,157.97,157.85,24.4921]
[1641415033202,5.84470948,157.97,157.86,2.22055871]
[1641415033490,22.4651819,157.96,157.86,2.72055871]
[1641415033889,22.7251819,157.96,157.86,29.25898373]
[1641415034090,22.7251819,157.96,157.88,9.4968]
[1641415034293,22.4651819,157.96,157.86,29.31898373]
[1641415034491,13.35470948,157.97,157.86,29.31898373]
[1641415034693,5.84470948,157.97,157.86,29.31898373]
[1641415035390,5.84470948,157.97,157.86,29.57898373]
[1641415035790,5.84470948,157.97,157.91,9.4948]
[1641415035991,5.84470948,157.97,157.92,30.13567935]
[1641415036395,5.84470948,157.97,157.92,30.89567935]
[1641415036991,5.84470948,157.97,157.95,2.93334468]
[1641415037193,5.84470948,157.97,157.96,47.02780003]
[1641415037395,5.84470948,157.97,157.96,3.52780003]
[1641415037592,5.84470948,157.97,157.96,3.02780003]
[1641415037792,5.84470948,157.97,157.96,39.02780003]
[1641415038795,5.84470948,157.97,157.96,90.02780003]
[1641415039095,10.84903641,158.02,157.98,3.05427474]
[1641415039496,10.84903641,158.02,157.98,3.81427474]
[1641415039894,10.84903641,158.02,157.98,3.55427474]
[1641415040696,10.84903641,158.02,157.98,3.81427474]
[1641415040894,10.84903641,158.02,157.98,13.30507474]
[1641415044405,1e-08,158.1,157.99,7.51]
[1641415044602,1e-08,158.1,158.04,9.4858]
[1641415045004,1e-08,158.1,158.04,10.2458]
[1641415045205,7.77,158.16,158.04,10.2458]
[1641415045406,7.77,158.16,158.05,3.01291477]
[1641415045605,7.77,158.16,158.05,3.27291477]
[1641415045805,7.77,158.16,158.05,3.77291477]
[1641415046008,29.26428323,158.15,158.05,13.25931477]
[1641415046208,29.52428323,158.15,158.05,3.01291477]
[1641415046407,29.52428323,158.15,158.05,3.51291477]
[1641415047017,29.52428323,158.15,158.08,3.57505341]
[1641415047815,39.01138323,158.15,158.08,3.57505341]
[1641415048436,7.51,158.14,158.08,3.57505341]
[1641415048832,9.4887,158.13,158.08,6.02024367]
[1641415049031,0.26,158.13,158.08,3.57505341]
[1641415049634,0.26,158.14,158.08,3.57505341]
[1641415050034,7.77,158.16,158.08,5.99491311]
[1641415050234,7.77,158.16,158.1,3.57505341]
[1641415050833,7.77,158.16,158.08,2.4198597]
[1641415050834,7.51,158.16,158.11,3.57505341]
[1641415051236,7.51,158.16,158.11,4.07505341]
[1641415051735,105.3839,158.2,158.11,6.69032061]
[1641415051936,31.6215,158.2,158.11,6.69032061]
[1641415052138,31.6164,158.23,158.11,6.69032061]
[1641415052336,120.331,158.24,158.11,6.95032061]
[1641415052538,47.217,158.24,158.11,6.95032061]
[1641415052735,3.10765543,158.3,158.11,6.95032061]
[1641415052936,47.9612,158.29,158.11,6.95032061]
[1641415053138,71.38201458,158.29,158.11,6.95032061]
[1641415053337,71.38201458,158.29,158.16,3.57505341]
[1641415053540,71.38201458,158.29,158.16,3.83505341]
[1641415053541,9.4798,158.27,158.16,3.83505341]
[1641415053738,9.4798,158.27,158.17,32.7624665]
[1641415053937,0.26,158.27,158.17,33.2624665]
[1641415054337,0.26,158.27,158.18,3.57505341]
[1641415054537,23.68081458,158.29,158.18,3.57505341]
[1641415054739,9.4799,158.27,158.18,4.07505341]
[1641415054940,9.4799,158.27,158.18,3.57505341]
[1641415055139,9.7399,158.27,158.18,3.57505341]
[1641415055339,9.7399,158.27,158.19,3.57505341]
[1641415055938,9.7399,158.27,158.2,2.86184085]
[1641415056142,0.26,158.27,158.2,2.36184085]
[1641415056541,0.26,158.28,158.2,2.36184085]
[1641415056741,0.26,158.28,158.2,2.86184085]
[1641415056949,25.7533481,158.32,158.2,2.86184085]
[1641415057143,25.4933481,158.32,158.2,2.86184085]
[1641415057346,56.57966946,158.32,158.21,23.66203562]
[1641415057545,56.57966946,158.32,158.21,27.23435595]
[1641415057748,56.57966946,158.32,158.21,27.73435595]
[1641415057954,9.4784,158.3,158.21,27.73435595]
[1641415058246,25.4933481,158.32,158.21,27.73435595]
[1641415058448,2.8279481,158.32,158.22,3.57232033]
[1641415058647,2.8279481,158.32,158.23,2.58860587]
[1641415058847,2.8279481,158.32,158.23,3.08860587]
[1641415059047,2.8279481,158.32,158.27,2.35901362]
[1641415059248,2.8279481,158.32,158.27,32.10904003]
[1641415059446,2.8279481,158.32,158.27,32.86904003]
[1641415060083,2.8279481,158.32,158.3,2.74770908]
[1641415060888,2.8279481,158.32,158.3,3.24770908]
[1641415061285,2.8279481,158.32,158.28,13.04765341]
[1641415061483,2.8279481,158.32,158.28,13.80765341]
[1641415061684,25.7807792,158.41,158.28,13.80765341]
[1641415062084,9.4731,158.39,158.28,13.80765341]
[1641415062283,9.4731,158.39,158.29,3.57063643]
[1641415062784,9.7331,158.39,158.28,2.7678782]
[1641415062983,9.7331,158.39,158.27,29.75002641]
[1641415063183,10.2331,158.39,158.26,3.57505341]
[1641415063584,10.2331,158.39,158.24,3.57505341]
[1641415063984,11.70625897,158.39,158.25,2.7448792]
[1641415064184,11.44625897,158.39,158.25,33.10962988]
[1641415064385,9.4731,158.39,158.25,37.18468329]
[1641415064585,9.472,158.4,158.25,37.18468329]
[1641415064786,9.472,158.4,158.26,0.06]
[1641415064986,9.472,158.4,158.28,3.57505341]
[1641415065189,46.5027,158.42,158.31,9.4713]
[1641415065389,46.5027,158.42,158.32,2.91967949]
[1641415065587,46.5027,158.42,158.32,28.76059433]
[1641415066187,46.7627,158.42,158.32,28.76059433]
[1641415066788,55.974,158.42,158.32,28.76059433]
[1641415066989,55.974,158.42,158.32,25.84091484]
[1641415067190,55.974,158.42,158.29,3.57505341]
[1641415067390,57.94715897,158.42,158.29,3.57505341]
[1641415067990,58.20715897,158.42,158.29,3.57505341]
[1641415068193,58.20715897,158.42,158.29,36.07452011]
[1641415068591,61.3148144,158.42,158.29,32.4994667]
[1641415069894,61.3148144,158.42,158.25,3.57505341]
[1641415070296,6.58359645,158.41,158.25,0.5]
[1641415070495,9.4762,158.33,158.25,0.5]
[1641415070893,19.99000396,158.32,158.24,3.57505341]
[1641415071094,20.25000396,158.32,158.24,3.57505341]
[1641415071696,9.4792,158.28,158.21,3.57235208]
[1641415072095,10.2392,158.28,158.21,3.57235208]
[1641415072694,10.2392,158.28,158.2,3.57505341]
[1641415072695,10.2392,158.28,158.18,2.85430604]
[1641415073495,9.4792,158.28,158.18,3.11430604]
[1641415073695,9.4784,158.3,158.18,3.11430604]
[1641415073895,9.4784,158.3,158.18,3.61430604]
[1641415074695,9.4784,158.3,158.19,7.14768419]
[1641415074896,9.4784,158.3,158.2,9.4777]
[1641415075098,9.4772,158.32,158.21,2.96170941]
[1641415075501,23.2265,158.34,158.21,3.72170941]
[1641415075698,23.2265,158.34,158.22,0.06]
[1641415075900,23.2265,158.34,158.22,30.52644217]
[1641415076100,23.2265,158.34,158.22,30.78644217]
[1641415076399,9.475,158.35,158.24,3.57505341]
[1641415076599,9.475,158.35,158.25,2.63677798]
[1641415077000,9.475,158.35,158.25,0.5]
[1641415077401,9.475,158.35,158.24,4.07505341]
[1641415078005,9.475,158.35,158.24,3.40520565]
[1641415078924,9.475,158.35,158.24,12.88100565]
[1641415079124,9.735,158.35,158.24,12.88100565]
[1641415079324,9.735,158.35,158.24,13.14100565]
[1641415079924,9.735,158.35,158.25,3.57165763]
[1641415080124,9.735,158.35,158.25,13.04685763]
[1641415080325,9.735,158.35,158.25,13.54685763]
[1641415081228,9.735,158.35,158.26,3.57165763]
[1641415081426,9.735,158.35,158.27,2.40068673]
[1641415083031,9.475,158.35,158.27,2.40068673]
[1641415083830,9.475,158.35,158.25,13.05025341]
[1641415084029,9.475,158.35,158.25,4.07505341]
[1641415084234,9.475,158.35,158.25,3.57505341]
[1641415084931,9.475,158.35,158.25,6.37084232]
[1641415085132,9.735,158.35,158.25,6.37084232]
[1641415085332,10.235,158.35,158.25,6.37084232]
[1641415085732,10.235,158.35,158.25,2.79578891]
[1641415086132,9.735,158.35,158.25,2.79578891]
[1641415088733,10.235,158.35,158.25,2.79578891]
[1641415089734,9.475,158.35,158.25,2.79578891]
[1641415090034,57.27315543,158.39,158.26,0.06]
[1641415090435,54.1655,158.39,158.26,0.06]
[1641415090636,54.1655,158.39,158.28,9.4732]
[1641415090836,54.1655,158.39,158.28,0.5]
[1641415091036,54.1655,158.39,158.29,27.96539927]
[1641415091235,7.51,158.39,158.29,27.96539927]
[1641415091434,7.51,158.39,158.29,28.72539927]
[1641415091634,27.38435543,158.42,158.32,9.4713]
[1641415091835,3.10765543,158.42,158.33,2.92443594]
[1641415092035,31.5725,158.44,158.33,2.92443594]
[1641415092437,32.0725,158.44,158.33,2.92443594]
[1641415092840,9.4717,158.4,158.33,2.92443594]
[1641415093241,9.4717,158.4,158.33,2.98443594]
[1641415094249,3.10765543,158.46,158.33,3.48443594]
[1641415094449,3.10765543,158.46,158.33,13.15513594]
[1641415094644,3.10765543,158.46,158.34,1.52786838]
[1641415094849,3.10765543,158.46,158.34,2.02786838]
[1641415095044,3.10765543,158.48,158.35,1.46786838]
[1641415095251,3.10765543,158.48,158.36,29.23912911]
[1641415095444,3.10765543,158.48,158.42,9.4647]
[1641415095748,3.10765543,158.48,158.43,2.72514081]
[1641415095946,3.10765543,158.48,158.43,3.22514081]
[1641415096447,6.10765543,158.53,158.43,3.22514081]
[1641415096645,6.10765543,158.53,158.43,3.48514081]
[1641415096844,6.10765543,158.53,158.44,0.06]
[1641415097345,6.10765543,158.53,158.45,1.46786838]
[1641415097546,6.10765543,158.53,158.46,2.8021547]
[1641415097744,6.10765543,158.53,158.49,9.4604]
[1641415097944,2.8279481,158.55,158.5,31.45923147]
[1641415098346,2.8279481,158.55,158.5,31.95923147]
[1641415098544,2.8279481,158.55,158.5,31.45923147]
[1641415098743,2.8279481,158.55,158.5,0.56]
[1641415099145,2.8279481,158.55,158.5,0.06]
[1641415099347,3.0879481,158.55,158.5,0.06]
[1641415100951,12.5313881,158.55,158.5,0.06]
[1641415101348,13.0313881,158.55,158.5,0.06]
[1641415101553,22.11175464,158.54,158.5,0.06]
[1641415101948,29.54858351,158.54,158.5,0.06]
[1641415102148,9.4665,158.52,158.5,0.06]
[1641415102452,3.03219997,158.51,158.46,2.71219574]
[1641415102649,6.93682887,158.54,158.47,0.06]
[1641415102850,3.36765543,158.54,158.47,0.06]
[1641415103553,0.26,158.54,158.47,0.06]
[1641415103951,4.32832113,158.57,158.47,0.06]
[1641415104251,9.4649,158.53,158.47,0.06]
[1641415104656,9.7249,158.53,158.44,0.06]
[1641415105054,66.0,158.52,158.43,32.04021437]
[1641415105453,66.04125681,158.52,158.43,0.5]
[1641415105853,66.04125681,158.52,158.42,3.13439976]
[1641415106852,75.24655681,158.52,158.43,9.4651]
[1641415107054,65.78125681,158.52,158.44,22.87872012]
[1641415107253,3.10765543,158.55,158.44,24.3500232]
[1641415107452,3.10765543,158.55,158.45,2.20141392]
[1641415107853,3.10765543,158.55,158.45,4.432717]
[1641415108456,19.79273957,158.54,158.45,3.672717]
[1641415108656,19.79273957,158.54,158.45,2.70141392]
[1641415108855,20.05273957,158.54,158.45,2.20141392]
[1641415109254,20.05273957,158.54,158.39,50.87115649]
[1641415109454,20.05273957,158.54,158.41,0.5]
[1641415109655,29.51683957,158.54,158.44,9.4649]
[1641415109856,3.10765543,158.57,158.42,24.57447134]
[1641415110055,3.10765543,158.57,158.45,1.47130308]
[1641415110255,3.10765543,158.56,158.46,2.30473544]
[1641415110855,27.40503071,158.56,158.42,26.54577442]
[1641415111158,36.86813071,158.56,158.42,58.09107442]
[1641415111356,33.76047528,158.56,158.42,58.09107442]
[1641415111855,33.76047528,158.56,158.43,2.44414806]
[1641415112089,37.12813071,158.56,158.43,2.70414806]
[1641415112255,37.12813071,158.56,158.43,4.67545114]
[1641415112456,36.86813071,158.56,158.47,2.86074376]
[1641415113058,36.86813071,158.56,158.43,1.97130308]
[1641415113259,36.86813071,158.56,158.42,33.01660308]
[1641415113458,33.76047528,158.56,158.44,9.4644]
[1641415113661,34.26047528,158.56,158.44,9.4644]
[1641415113858,34.02047528,158.56,158.44,11.19570308]
[1641415114159,9.7231,158.56,158.45,29.03279814]
[1641415114359,9.7231,158.56,158.47,9.4628]
[1641415114559,9.7231,158.56,158.48,2.34454533]
[1641415114960,9.7231,158.56,158.48,2.84454533]
[1641415115158,9.7231,158.56,158.49,23.87226558]
[1641415115358,9.7231,158.56,158.49,24.37226558]
[1641415116561,9.7231,158.56,158.49,0.5]
[1641415116760,9.7231,158.56,158.43,31.5431]
[1641415116960,9.7231,158.56,158.43,0.5]
[1641415117161,9.4631,158.56,158.43,0.5]
[1641415117362,3.10765543,158.58,158.44,1.47130308]
[1641415117568,3.10765543,158.58,158.45,2.5759491]
[1641415117761,6.67653828,158.55,158.45,2.5759491]
[1641415117966,6.67653828,158.55,158.46,1.47130308]
[1641415118165,6.67653828,158.55,158.47,24.88743671]
[1641415118366,3.828e-05,158.55,158.5,9.4591]
[1641415118567,5.30017112,158.62,158.51,93.0]
[1641415118767,7.13432738,158.63,158.51,94.47130308]
[1641415118971,7.13432738,158.63,158.51,95.23130308]
[1641415119173,7.13432738,158.63,158.52,1.47130308]
[1641415119374,7.13432738,158.63,158.53,2.61216709]
[1641415119592,0.31669419,158.65,158.58,9.456]
[1641415119791,0.31669419,158.65,158.59,2.60925453]
[1641415119990,0.31669419,158.65,158.59,3.10925453]
[1641415120690,0.31669419,158.65,158.59,2.60925453]
[1641415120889,0.31669419,158.65,158.59,12.56525453]
[1641415121492,0.31669419,158.65,158.59,12.06525453]
[1641415121691,0.31669419,158.65,158.59,12.56525453]
[1641415122090,0.31669419,158.65,158.59,12.06525453]
[1641415122294,0.31669419,158.65,158.57,9.457]
[1641415122491,0.31669419,158.65,158.58,0.5]
[1641415122891,0.31669419,158.65,158.52,32.0253]
[1641415123291,0.31669419,158.65,158.53,28.70659019]
[1641415123594,9.77399419,158.65,158.56,9.458]
[1641415123791,9.77399419,158.65,158.57,27.37048085]
[1641415124392,9.77399419,158.65,158.57,27.87048085]
[1641415124793,10.03399419,158.65,158.57,27.37048085]
[1641415125091,9.77399419,158.65,158.57,27.37048085]
[1641415125292,0.31669419,158.65,158.57,27.37048085]
[1641415125492,0.31669419,158.65,158.57,28.13048085]
[1641415125892,0.31669419,158.65,158.57,37.32788085]
[1641415126093,0.31669419,158.65,158.51,23.2399]
[1641415126292,0.31669419,158.65,158.54,0.5]
[1641415126494,9.77379419,158.65,158.51,55.027]
[1641415126894,10.03379419,158.65,158.51,55.027]
[1641415127096,10.03379419,158.65,158.52,30.61569752]
[1641415127506,10.03379419,158.65,158.52,30.87569752]
[1641415127904,9.77379419,158.65,158.52,31.37569752]
[1641415128203,0.31669419,158.65,158.52,32.8470006]
[1641415129004,0.31669419,158.65,158.58,9.4567]
[1641415129214,0.31669419,158.65,158.59,32.97912497]
[1641415129405,0.31669419,158.65,158.59,33.47912497]
[1641415129604,0.31669419,158.65,158.59,34.95042805]
[1641415129804,0.31669419,158.65,158.59,33.73912497]
[1641415130211,0.31669419,158.65,158.62,9.4545]
[1641415130408,5.30017112,158.71,158.64,45.0]
[1641415130809,8.10805922,158.74,158.64,45.76]
[1641415131008,8.10805922,158.74,158.65,32.09246244]
[1641415131207,8.10805922,158.74,158.69,9.4479]
[1641415131408,8.10805922,158.74,158.7,2.71705686]
[1641415131811,8.10805922,158.74,158.7,3.47705686]
[1641415132211,8.10805922,158.74,158.72,9.4465]
[1641415132412,2.8078881,158.74,158.73,35.82423499]
[1641415133011,2.8078881,158.74,158.73,36.08423499]
[1641415133211,8.81e-05,158.74,158.73,3.28780003]
[1641415133412,8.81e-05,158.74,158.73,3.52780003]
[1641415133815,8.81e-05,158.74,158.73,59.52780003]
[1641415134716,8.81e-05,158.74,158.73,3.52780003]
[1641415135317,8.81e-05,158.74,158.73,3.02780003]
[1641415135918,8.81e-05,158.74,158.73,3.52780003]
[1641415136517,8.81e-05,158.74,158.73,3.78780003]
[1641415136727,8.81e-05,158.74,158.73,80.78780003]
[1641415137721,8.81e-05,158.74,158.73,96.78780003]
[1641415138753,5.30017112,158.88,158.74,116.38140856]
[1641415138951,5.30017112,158.88,158.81,26.59016117]
[1641415139150,5.30017112,158.88,158.81,28.92644838]
[1641415139350,5.30017112,158.88,158.81,29.68644838]
[1641415139753,1.78071914,158.85,158.82,1.47130308]
[1641415139964,5.30017112,158.92,158.82,1.97130308]
[1641415140253,5.30017112,158.92,158.86,30.66221719]
[1641415140660,5.30017112,158.92,158.86,31.16221719]
[1641415140855,5.30017112,158.95,158.86,30.66221719]
[1641415141053,5.30017112,158.95,158.86,27.78830487]
[1641415141254,14.74067112,158.95,158.86,27.78830487]
[1641415141562,15.24067112,158.95,158.86,27.78830487]
[1641415141754,15.50067112,158.95,158.86,27.78830487]
[1641415141954,15.50067112,158.95,158.79,3.03499244]
[1641415142157,16.47383009,158.95,158.79,3.03499244]
[1641415142359,23.98383009,158.95,158.79,3.53499244]
[1641415142556,22.51067112,158.95,158.79,3.53499244]
[1641415142957,22.51067112,158.95,158.8,31.78678828]
[1641415143356,22.51067112,158.95,158.8,41.72908828]
[1641415143757,22.25067112,158.95,158.8,41.22908828]
[1641415144164,25.36284027,158.94,158.8,31.78678828]
[1641415144458,9.4433,158.9,158.8,31.78678828]
[1641415144860,9.9433,158.9,158.8,31.78678828]
[1641415145060,9.7033,158.9,158.78,9.4435]
[1641415145257,9.7033,158.9,158.73,1.47130308]
[1641415145759,9.7033,158.9,158.71,1.47130308]
[1641415145958,9.4473,158.84,158.72,2.97321526]
[1641415146160,25.36284027,158.88,158.72,2.97321526]
[1641415146359,0.26,158.84,158.72,2.97321526]
[1641415146559,0.26,158.84,158.7,26.29257367]
[1641415146960,9.4507,158.78,158.7,26.79257367]
[1641415147362,0.26,158.78,158.7,26.79257367]
[1641415147659,7.51,158.84,158.71,2.6480846]
[1641415147860,8.01,158.84,158.71,2.6480846]
[1641415148862,36.00098442,158.8,158.71,2.6480846]
[1641415149061,36.26098442,158.8,158.71,2.6480846]
[1641415149264,9.7093,158.8,158.71,2.6480846]
[1641415149869,9.4493,158.8,158.71,3.1480846]
[1641415150662,9.4493,158.8,158.71,3.4080846]
[1641415150863,9.4481,158.82,158.71,3.4080846]
[1641415151262,9.7081,158.82,158.71,3.4080846]
[1641415151464,9.7081,158.82,158.71,3.1480846]
[1641415151663,9.7081,158.82,158.71,2.6480846]
[1641415151870,9.7081,158.82,158.71,12.3557846]
[1641415152262,9.7081,158.82,158.71,12.8557846]
[1641415152668,9.7081,158.82,158.71,12.5957846]
[1641415153166,38.99584741,158.82,158.71,12.5957846]
[1641415153666,38.99584741,158.82,158.71,9.9477]
[1641415153866,38.99584741,158.82,158.69,9.4489]
[1641415154068,47.00584741,158.82,158.66,0.5]
[1641415154673,1.47315897,158.81,158.63,30.04579873]
[1641415154870,9.4535,158.73,158.63,30.04579873]
[1641415155075,36.43163455,158.73,158.63,30.04579873]
[1641415155270,36.43163455,158.73,158.57,31.5117]
[1641415155471,36.43163455,158.73,158.52,147.5135]
[1641415155671,74.6875,158.72,158.55,1.47315897]
[1641415155870,82.6975,158.72,158.5,1.47315897]
[1641415156170,24.63536085,158.67,158.53,24.40536337]
[1641415156371,24.63536085,158.67,158.53,27.33630145]
[1641415156671,24.89536085,158.67,158.53,27.33630145]
[1641415156873,24.89536085,158.67,158.53,27.83630145]
[1641415157102,9.4587,158.64,158.53,37.29500145]
[1641415157306,108.3589,158.72,158.53,38.76816042]
[1641415157501,82.6975,158.72,158.54,76.0323]
[1641415157905,82.6975,158.72,158.55,1.47315897]
[1641415158103,29.61931761,158.71,158.56,26.56059849]
[1641415158505,30.11931761,158.71,158.56,27.32059849]
[1641415158706,82.6975,158.72,158.56,27.32059849]
[1641415158906,9.4556,158.69,158.59,9.4551]
[1641415159105,7.51,158.75,158.6,2.14720922]
[1641415159305,7.51,158.75,158.6,3.62036819]
[1641415159504,7.51,158.75,158.6,4.38036819]
[1641415159706,7.51,158.75,158.61,30.23684271]
[1641415159907,7.51,158.75,158.61,30.73684271]
[1641415160104,7.51,158.75,158.61,30.99684271]
[1641415160307,7.77,158.75,158.61,30.99684271]
[1641415161007,7.51,158.75,158.61,30.99684271]
[1641415161206,7.51,158.75,158.61,32.47000168]
[1641415161606,7.51,158.75,158.61,30.99684271]
[1641415161805,7.51,158.75,158.61,30.73684271]
[1641415162006,17.4619,158.75,158.61,30.23684271]
[1641415162207,27.81176188,158.73,158.61,30.23684271]
[1641415162507,1.47315897,158.72,158.61,30.23684271]
[1641415163010,0.76,158.72,158.61,39.69064271]
[1641415163209,0.76,158.72,158.62,2.49685203]
[1641415163408,28.57176188,158.73,158.62,2.99685203]
[1641415163609,28.07176188,158.73,158.62,2.99685203]
[1641415163815,28.07176188,158.73,158.62,2.49685203]
[1641415164209,37.52496188,158.73,158.62,2.49685203]
[1641415164609,9.7132,158.73,158.62,2.49685203]
[1641415164809,9.4532,158.73,158.62,2.49685203]
[1641415165011,7.51,158.77,158.62,2.49685203]
[1641415165210,7.51,158.77,158.62,11.95015203]
[1641415165411,7.51,158.77,158.62,12.45015203]
[1641415165618,7.51,158.77,158.62,12.71015203]
[1641415166312,75.6607,158.81,158.63,1.47315897]
[1641415166614,75.6607,158.81,158.72,2.9408315]
[1641415166816,97.3267,158.83,158.72,2.9408315]
[1641415167012,48.90625897,158.86,158.72,27.13595034]
[1641415167915,9.4474,158.83,158.72,36.58335034]
[1641415168112,9.4474,158.83,158.72,36.84335034]
[1641415169314,9.4474,158.83,158.72,36.58335034]
[1641415169516,31.75584307,158.82,158.72,36.58335034]
[1641415169713,31.75584307,158.82,158.72,27.13595034]
[1641415169714,9.4482,158.81,158.72,27.13595034]
[1641415169914,31.75584307,158.82,158.7,9.4484]
[1641415170114,0.26,158.81,158.7,9.4484]
[1641415170316,32.01584307,158.82,158.65,1.47315897]
[1641415170715,7.51,158.81,158.65,0.5]
[1641415171018,9.4516,158.76,158.66,27.28211551]
[1641415171514,9.7116,158.76,158.66,27.28211551]
[1641415171914,9.7116,158.76,158.66,27.78211551]
[1641415172115,0.26,158.76,158.66,37.23291551]
[1641415172516,22.8259,158.8,158.66,37.49291551]
[1641415173822,32.2748,158.8,158.66,37.49291551]
[1641415175018,96.8789,158.81,158.66,38.96607448]
[1641415175316,9.4478,158.82,158.66,38.96607448]
[1641415175518,9.4478,158.82,158.66,62.77697448]
[1641415176517,9.7078,158.82,158.66,62.77697448]
[1641415177519,9.7078,158.82,158.66,62.51697448]